[Event "EYCC Girls U10 2018"]
[Site "Riga"]
[Date "2018.08.28"]
[Round "8"]
[White "Mutina, Sofia"]
[Black "Vlasova, Olesia"]
[Result "1/2-1/2"]
[ECO "A01"]
[WhiteElo "1319"]
[BlackElo "1693"]
[Annotator "NA RC"]
[PlyCount "91"]
[EventDate "2018.08.20"]
[EventType "swiss"]
[EventCountry "LAT"]
[SourceTitle "playchess.com"]
[Source "ChessBase"]
[SourceQuality "1"]
[TimeControl "40/5400+30:1800+30"]

1. b3 {[%emt 0:00:00]} e5 {[%emt 0:00:00]} 2. Bb2 {[%emt 0:00:32]} Nc6 {[%emt 0:00:00]} 3. e3 {[%emt 0:00:26]} d6 {[%emt 0:00:00]} 4. g3 {[%emt 0:03:55]} g6 {[%emt 0:01:54]} 5. d4 {[%emt 0:02:54]} f6 {[%emt 0:02:13]} 6. Bg2 {[%emt 0:00:43]} Bd7 {[%emt 0:00:33]} 7. c4 {[%emt 0:00:38]} Bg7 {[%emt 0:01:05]} 8. Ne2 {[%emt 0:00:24]} Nh6 {[%emt 0:06:05]} 9. Nbc3 {[%emt 0:06:45]} O-O {[%emt 0:04:15]} 10. O-O {[%emt 0:04:58]} Qc8 {[%emt 0:04:22]} 11. Nd5 {[%emt 0:04:30]} Bh3 {[%emt 0:17:55]} 12. b4 {[%emt 0:04:54]} Bxg2 {[%emt 0:01:13]} 13. Kxg2 {[%emt 0:00:20]} Qd7 {[%emt 0:02:18]} 14. Qb3 {[%emt 0:08:52]} Nf7 {[%emt 0:03:41]} 15. Rad1 {[%emt 0:02:11]} Ng5 {[%emt 0:06:17]} 16. Ng1 {[%emt 0:09:11]} Ne7 {[%emt 0:19:31]} 17. Nxe7+ {[%emt 0:06:54]} Qxe7 {[%emt 0:00:12]} 18. c5+ {[%emt 0:00:08]} Nf7 {[%emt 0:02:17]} 19. cxd6 {[%emt 0:01:25]} cxd6 {[%emt 0:00:47]} 20. Qd5 {[%emt 0:03:27]} Rac8 {[%emt 0:03:19]} 21. Rc1 {[%emt 0:01:44]} f5 {[%emt 0:02:19]} 22. Rfe1 {[%emt 0:08:47]} Rfd8 {[%emt 0:03:18]} 23. Nf3 {[%emt 0:04:24]} e4 {[%emt 0:01:33]} 24. Nd2 {[%emt 0:00:14]} b6 {[%emt 0:01:32]} 25. a4 {[%emt 0:04:52]} Qd7 {[%emt 0:02:50]} 26. b5 {[%emt 0:02:35]} Bf8 {[%emt 0:01:25]} 27. Ba3 {[%emt 0:01:08]} Kg7 {[%emt 0:01:05]} 28. Rc6 {[%emt 0:01:47]} Qb7 {[%emt 0:02:35]} 29. Rec1 {[%emt 0:01:26]} Rd7 {[%emt 0:00:30]} 30. Qa2 {[%emt 0:01:25]} Rdc7 {[%emt 0:00:35]} 31. Rxc7 {[%emt 0:00:10]} Rxc7 {[%emt 0:00:09]} 32. Rxc7 {[%emt 0:00:18]} Qxc7 {[%emt 0:00:06]} 33. Qc4 {[%emt 0:00:09]} Qxc4 {[%emt 0:01:12]} 34. Nxc4 {[%emt 0:00:50]} d5 {[%emt 0:00:47]} 35. Bxf8+ Kxf8 36. Nd2 {[%emt 0:00:40]} Ke7 {[%emt 0:01:19]} 37. Kf1 {[%emt 0:00:19]} Ke6 {[%emt 0:01:34]} 38. Ke1 {[%emt 0:00:54]} Nd6 {[%emt 0:00:43]} 39. Kd1 {[%emt 0:00:16]} Nb7 {[%emt 0:00:14]} 40. Nb3 {[%emt 0:00:00]} Kf6 {[%emt 0:00:00]} 41. Ke2 {[%emt 0:00:46]} Na5 {[%emt 0:03:48]} 42. Nxa5 {[%emt 0:00:09]} bxa5 {[%emt 0:00:04]} 43. Kf1 {[%emt 0:00:43]} Kg5 {[%emt 0:01:37]} 44. h3 {[%emt 0:01:48]} Kh5 {[%emt 0:00:17]} 45. Kg2 {[%emt 0:00:12]} g5 {[%emt 0:01:42]} 46. Kh2 {[%emt 0:00:55]} 1/2-1/2

[Event "EYCC Girls U10 2018"]
[Site "Riga"]
[Date "2018.08.28"]
[Round "8"]
[White "Gorcuk, Ozgu"]
[Black "Huang, Wendy"]
[Result "0-1"]
[ECO "D02"]
[WhiteElo "1299"]
[BlackElo "1648"]
[Annotator "NA RC"]
[PlyCount "72"]
[EventDate "2018.08.20"]
[EventType "swiss"]
[EventCountry "LAT"]
[SourceTitle "playchess.com"]
[Source "ChessBase"]
[SourceQuality "1"]
[TimeControl "40/5400+30:1800+30"]

1. d4 {[%emt 0:00:00]} d5 {[%emt 0:00:00]} 2. Bf4 {[%emt 0:00:00]} Nf6 {[%emt 0:00:04]} 3. Nf3 {[%emt 0:00:00]} c5 {[%emt 0:00:21]} 4. c3 {[%emt 0:00:17]} e6 {[%emt 0:00:45]} 5. e3 {[%emt 0:00:26]} Nc6 {[%emt 0:00:43]} 6. Nbd2 {[%emt 0:00:28]} Bd6 {[%emt 0:00:56]} 7. Bg3 {[%emt 0:00:21]} O-O {[%emt 0:01:05]} 8. Bd3 {[%emt 0:03:26]} b6 {[%emt 0:01:28]} 9. e4 {[%emt 0:02:47]} Be7 {[%emt 0:12:51]} 10. e5 {[%emt 0:06:23]} Nh5 {[%emt 0:01:44]} 11. Qe2 {[%emt 0:06:45]} Bb7 {[%emt 0:03:41]} 12. O-O-O {[%emt 0:05:28]} g6 {[%emt 0:03:23]} 13. Kb1 {[%emt 0:02:15]} a5 {[%emt 0:10:37]} 14. Bb5 {[%emt 0:07:44]} Na7 {[%emt 0:04:16]} 15. dxc5 {[%emt 0:03:02]} bxc5 {[%emt 0:02:34]} 16. Ba4 {[%emt 0:03:31]} Bc6 {[%emt 0:03:45]} 17. Bxc6 {[%emt 0:01:28]} Nxc6 {[%emt 0:00:15]} 18. Nc4 {[%emt 0:04:22]} Qc7 {[%emt 0:04:29]} 19. Na3 {[%emt 0:00:49]} c4 {[%emt 0:03:08]} 20. Nb5 {[%emt 0:00:14]} Qb6 {[%emt 0:00:57]} 21. Nbd4 {[%emt 0:00:12]} a4 {[%emt 0:05:03]} 22. Nxc6 {[%emt 0:03:23]} Qxc6 {[%emt 0:00:09]} 23. a3 {[%emt 0:00:08]} Rab8 {[%emt 0:04:53]} 24. Ka1 {[%emt 0:00:49]} Qb6 {[%emt 0:01:42]} 25. Nd4 {[%emt 0:04:14]} Rfc8 {[%emt 0:02:12]} 26. Rb1 {[%emt 0:03:41]} Qa5 {[%emt 0:01:39]} 27. Qc2 {[%emt 0:02:21]} Bc5 {[%emt 0:01:15]} 28. Rhd1 {[%emt 0:01:29]} Ng7 {[%emt 0:03:58]} 29. Bf4 {[%emt 0:04:00]} Rb3 {[%emt 0:10:50]} 30. Nxb3 {[%emt 0:05:38]} axb3 {[%emt 0:00:07]} 31. Qc1 {[%emt 0:00:16]} Ra8 {[%emt 0:03:42]} 32. Be3 {[%emt 0:00:39]} Bxa3 {[%emt 0:03:13]} 33. bxa3 {[%emt 0:00:26]} Qxa3+ {[%emt 0:00:08]} 34. Qxa3 {[%emt 0:00:07]} Rxa3+ {[%emt 0:00:04]} 35. Kb2 {[%emt 0:00:04]} Ra2+ {[%emt 0:00:07]} 36. Kc1 {[%emt 0:00:04]} Rc2# {[%emt 0:00:04] Rh1} 0-1

[Event "EYCC Girls U10 2018"]
[Site "Riga"]
[Date "2018.08.29"]
[Round "9"]
[White "Shvedova, Alexandra"]
[Black "Papadopoulou, Marilena"]
[Result "1-0"]
[ECO "C49"]
[WhiteElo "1758"]
[BlackElo "1259"]
[Annotator "NA"]
[PlyCount "55"]
[EventDate "2018.08.20"]
[EventType "swiss"]
[EventCountry "LAT"]
[SourceTitle "playchess.com"]
[Source "ChessBase"]
[SourceQuality "1"]
[TimeControl "40/5400+30:1800+30"]

1. e4 {[%emt 0:00:00]} e5 {[%emt 0:00:00]} 2. Nf3 {[%emt 0:00:00]} Nc6 {[%emt 0:00:00]} 3. Nc3 {[%emt 0:00:10]} Nf6 {[%emt 0:00:00]} 4. Bb5 {[%emt 0:00:04]} Bb4 {[%emt 0:00:03]} 5. O-O {[%emt 0:00:09]} O-O {[%emt 0:00:08]} 6. d3 {[%emt 0:00:04]} d6 {[%emt 0:00:21]} 7. Bg5 {[%emt 0:00:05]} Be6 {[%emt 0:00:42]} 8. d4 {[%emt 0:02:36]} exd4 {[%emt 0:01:25]} 9. Nxd4 {[%emt 0:00:11]} Bxc3 {[%emt 0:07:07]} 10. bxc3 {[%emt 0:00:17]} Na5 {[%emt 0:06:28]} 11. f4 {[%emt 0:07:25]} c5 {[%emt 0:12:48]} 12. Nf3 {[%emt 0:09:13]} Qb6 {[%emt 0:04:22]} 13. Bxf6 {[%emt 0:02:38]} Qxb5 {[%emt 0:01:09]} 14. Be7 {[%emt 0:00:54]} Rfe8 {[%emt 0:00:59]} 15. Qxd6 {[%emt 0:01:36]} Rac8 {[%emt 0:05:34]} 16. Bh4 {[%emt 0:02:00]} Qa4 {[%emt 0:01:50]} 17. Rfe1 {[%emt 0:08:25]} Qxc2 {[%emt 0:01:15]} 18. Qd2 {[%emt 0:04:21]} Qxd2 {[%emt 0:01:47]} 19. Nxd2 {[%emt 0:00:06]} Rc6 {[%emt 0:02:51]} 20. e5 {[%emt 0:08:09]} Nc4 {[%emt 0:04:17]} 21. Ne4 {[%emt 0:04:33]} Bd5 {[%emt 0:03:25]} 22. Rad1 {[%emt 0:04:05]} Bxe4 {[%emt 0:04:40]} 23. Rxe4 {[%emt 0:00:06]} Na3 {[%emt 0:04:08]} 24. Rd6 {[%emt 0:08:18]} Rxd6 {[%emt 0:01:46]} 25. exd6 {[%emt 0:00:04]} Rxe4 {[%emt 0:01:40]} 26. d7 {[%emt 0:00:04]} Kf8 {[%emt 0:01:59]} 27. d8=Q+ {[%emt 0:00:07]} Re8 {[%emt 0:00:38]} 28. Be7+ {[%emt 0:00:03]} 1-0

[Event "EYCC Girls U10 2018"]
[Site "Riga"]
[Date "2018.08.29"]
[Round "9"]
[White "Huang, Wendy"]
[Black "Svergina, Sofya"]
[Result "0-1"]
[ECO "B34"]
[WhiteElo "1648"]
[BlackElo "1657"]
[Annotator "NA"]
[PlyCount "102"]
[EventDate "2018.08.20"]
[EventType "swiss"]
[EventCountry "LAT"]
[SourceTitle "playchess.com"]
[Source "ChessBase"]
[SourceQuality "1"]
[TimeControl "40/5400+30:1800+30"]

1. e4 {[%emt 0:00:00]} c5 {[%emt 0:00:00]} 2. Nf3 {[%emt 0:00:00]} Nc6 {[%emt 0:00:00]} 3. d4 {[%emt 0:00:02]} cxd4 {[%emt 0:00:00]} 4. Nxd4 {[%emt 0:00:09]} g6 {[%emt 0:00:10]} 5. Nc3 {[%emt 0:01:10]} Bg7 {[%emt 0:00:19]} 6. Be3 {[%emt 0:00:46]} Nf6 {[%emt 0:00:30]} 7. Qd2 {[%emt 0:06:03]} Ng4 {[%emt 0:10:08]} 8. Nxc6 {[%emt 0:07:00]} bxc6 {[%emt 0:00:34]} 9. Bd4 {[%emt 0:04:20]} Bxd4 {[%emt 0:02:45]} 10. Qxd4 {[%emt 0:00:18]} e5 {[%emt 0:02:29]} 11. Qc5 {[%emt 0:09:04]} Qb6 {[%emt 0:01:43]} 12. Qxb6 {[%emt 0:01:17]} axb6 {[%emt 0:00:07]} 13. h3 {[%emt 0:04:12]} Nf6 {[%emt 0:00:54]} 14. O-O-O {[%emt 0:02:02]} Ke7 {[%emt 0:01:05]} 15. a3 {[%emt 0:02:51]} d6 {[%emt 0:02:03]} 16. g3 {[%emt 0:03:57]} Be6 {[%emt 0:00:45]} 17. Bg2 {[%emt 0:00:53]} g5 {[%emt 0:01:47]} 18. Rhe1 {[%emt 0:05:29]} h5 {[%emt 0:01:37]} 19. Rd2 {[%emt 0:05:35]} Rhd8 {[%emt 0:00:24]} 20. Red1 {[%emt 0:07:17]} b5 {[%emt 0:11:06]} 21. Kb1 {[%emt 0:02:37]} g4 {[%emt 0:04:09]} 22. h4 {[%emt 0:03:13]} Ra5 {[%emt 0:05:17]} 23. Rd3 {[%emt 0:09:09]} Rd7 {[%emt 0:05:06]} 24. b4 {[%emt 0:04:19]} Ra8 {[%emt 0:02:54]} 25. Kb2 {[%emt 0:00:54]} Bc4 {[%emt 0:01:24]} 26. R3d2 {[%emt 0:01:24]} Be6 {[%emt 0:01:28]} 27. Rd3 {[%emt 0:02:26]} Rb8 {[%emt 0:05:59]} 28. R3d2 {[%emt 0:02:49]} Rbd8 {[%emt 0:02:28]} 29. Rd3 {[%emt 0:00:46]} d5 {[%emt 0:03:56]} 30. exd5 {[%emt 0:02:27]} Nxd5 {[%emt 0:02:13]} 31. Re1 {[%emt 0:02:56]} f6 {[%emt 0:02:55]} 32. Ne4 {[%emt 0:01:22]} Nb6 {[%emt 0:01:38]} 33. Rxd7+ {[%emt 0:01:21]} Rxd7 {[%emt 0:02:38]} 34. Nc5 {[%emt 0:01:17]} Nc4+ {[%emt 0:00:08]} 35. Kb3 {[%emt 0:02:04]} Ne3+ {[%emt 0:01:28]} 36. Nxe6 {[%emt 0:00:24]} Nxg2 {[%emt 0:00:06]} 37. Rg1 {[%emt 0:00:46]} Kxe6 {[%emt 0:02:42]} 38. Rxg2 {[%emt 0:00:06]} Rd4 {[%emt 0:00:40]} 39. Rg1 {[%emt 0:01:22]} Rd2 {[%emt 0:00:44]} 40. Rf1 {[%emt 0:00:00]} e4 {[%emt 0:00:00]} 41. Kb2 {[%emt 0:05:38]} f5 {[%emt 0:01:07]} 42. Kc1 {[%emt 0:01:08]} Rd5 {[%emt 0:00:25]} 43. Rd1 {[%emt 0:06:53]} Ke5 {[%emt 0:00:45]} 44. Re1 {[%emt 0:08:02]} Rd4 {[%emt 0:01:14]} 45. c3 {[%emt 0:01:23]} Rd3 {[%emt 0:00:19]} 46. Re3 {[%emt 0:00:55]} Kd5 {[%emt 0:00:11]} 47. Kc2 {[%emt 0:01:49]} Rxe3 {[%emt 0:00:06]} 48. fxe3 {[%emt 0:00:22]} Kc4 {[%emt 0:00:05]} 49. Kd2 {[%emt 0:04:12]} Kb3 {[%emt 0:00:04]} 50. Kd1 {[%emt 0:01:06]} Kxc3 {[%emt 0:00:09]} 51. Ke2 {[%emt 0:00:13]} Kc2 {[%emt 0:00:31]} 0-1

[Event "EYCC Girls U10 2018"]
[Site "Riga"]
[Date "2018.08.29"]
[Round "9"]
[White "Shukhman, Anna"]
[Black "Zhapova, Yana"]
[Result "1/2-1/2"]
[ECO "A22"]
[WhiteElo "1577"]
[BlackElo "1733"]
[Annotator "NA"]
[PlyCount "62"]
[EventDate "2018.08.20"]
[EventType "swiss"]
[EventCountry "LAT"]
[SourceTitle "playchess.com"]
[Source "ChessBase"]
[SourceQuality "1"]
[TimeControl "40/5400+30:1800+30"]

1. c4 {[%emt 0:00:00]} e5 {[%emt 0:00:00]} 2. Nc3 {[%emt 0:00:00]} Nf6 {[%emt 0:00:00]} 3. g3 {[%emt 0:00:00]} d5 {[%emt 0:00:29]} 4. cxd5 {[%emt 0:00:00]} Nxd5 {[%emt 0:00:41]} 5. Bg2 {[%emt 0:00:00]} Nb6 {[%emt 0:00:19]} 6. d3 {[%emt 0:00:08]} Nc6 {[%emt 0:01:12]} 7. Nf3 {[%emt 0:01:33]} Be7 {[%emt 0:00:53]} 8. O-O {[%emt 0:00:11]} O-O {[%emt 0:00:33]} 9. Be3 {[%emt 0:00:14]} Be6 {[%emt 0:01:09]} 10. Rc1 {[%emt 0:00:11]} f5 {[%emt 0:01:19]} 11. b4 {[%emt 0:01:01]} Bf6 {[%emt 0:15:54]} 12. Bc5 {[%emt 0:09:08]} Rf7 {[%emt 0:08:47]} 13. Nd2 {[%emt 0:10:41]} Nd5 {[%emt 0:05:33]} 14. Nxd5 {[%emt 0:05:54]} Bxd5 {[%emt 0:00:39]} 15. Bxd5 {[%emt 0:00:25]} Qxd5 {[%emt 0:00:03]} 16. Qb3 {[%emt 0:03:36]} Rd8 {[%emt 0:06:12]} 17. Qxd5 {[%emt 0:02:00]} Rxd5 {[%emt 0:00:03]} 18. Nb3 {[%emt 0:00:57]} a6 {[%emt 0:06:30]} 19. a3 {[%emt 0:00:39]} Nd8 {[%emt 0:01:21]} 20. f3 {[%emt 0:03:41]} g6 {[%emt 0:03:24]} 21. Bf2 {[%emt 0:02:13]} Ne6 {[%emt 0:00:36]} 22. Rc4 {[%emt 0:04:28]} Bd8 {[%emt 0:13:35]} 23. Rfc1 {[%emt 0:05:50]} c6 {[%emt 0:02:44]} 24. Nc5 {[%emt 0:04:11]} Nxc5 {[%emt 0:00:34]} 25. Rxc5 {[%emt 0:01:04]} Rxc5 {[%emt 0:04:30]} 26. Rxc5 {[%emt 0:00:17]} Bf6 {[%emt 0:01:11]} 27. Rc4 {[%emt 0:01:06]} Rd7 {[%emt 0:00:31]} 28. Kg2 {[%emt 0:01:27]} Kf7 {[%emt 0:00:43]} 29. g4 {[%emt 0:01:00]} Ke6 {[%emt 0:00:58]} 30. Kf1 {[%emt 0:01:05]} Bd8 {[%emt 0:01:09]} 31. Bc5 {[%emt 0:02:23]} Bf6 {[%emt 0:03:06]} 1/2-1/2

[Event "EYCC Girls U10 2018"]
[Site "Riga"]
[Date "2018.08.29"]
[Round "9"]
[White "Maria, Lia-Alexandra"]
[Black "Mutina, Sofia"]
[Result "0-1"]
[ECO "D37"]
[WhiteElo "1576"]
[BlackElo "1319"]
[Annotator "NA"]
[PlyCount "62"]
[EventDate "2018.08.20"]
[EventType "swiss"]
[EventCountry "LAT"]
[SourceTitle "playchess.com"]
[Source "ChessBase"]
[SourceQuality "1"]
[TimeControl "40/5400+30:1800+30"]

1. d4 {[%emt 0:00:00]} Nf6 {[%emt 0:00:00]} 2. Nf3 {[%emt 0:00:00]} d5 {[%emt 0:00:51]} 3. c4 {[%emt 0:00:11]} e6 {[%emt 0:02:57]} 4. Nc3 {[%emt 0:00:57]} Be7 {[%emt 0:02:35]} 5. Bf4 {[%emt 0:01:24]} O-O {[%emt 0:01:53]} 6. e3 {[%emt 0:00:56]} b6 {[%emt 0:00:59]} 7. Be2 {[%emt 0:03:02]} Bb7 {[%emt 0:02:31]} 8. O-O {[%emt 0:02:25]} Nbd7 {[%emt 0:01:23]} 9. Rc1 {[%emt 0:02:31]} c5 {[%emt 0:01:25]} 10. cxd5 {[%emt 0:05:09]} Nxd5 {[%emt 0:00:36]} 11. Nxd5 {[%emt 0:01:26]} Bxd5 {[%emt 0:02:07]} 12. dxc5 {[%emt 0:06:19]} Bxc5 {[%emt 0:02:50]} 13. a3 {[%emt 0:06:17]} a5 {[%emt 0:00:31]} 14. Bb5 {[%emt 0:07:15]} Qe7 {[%emt 0:04:38]} 15. e4 {[%emt 0:02:41]} Bxe4 {[%emt 0:11:35]} 16. Qxd7 {[%emt 0:01:23]} Qf6 {[%emt 0:00:43]} 17. Be5 {[%emt 0:07:19]} Qg6 {[%emt 0:01:03]} 18. Bc6 {[%emt 0:02:13]} Rad8 {[%emt 0:05:52]} 19. Bxe4 {[%emt 0:03:37]} Qxe4 {[%emt 0:00:10]} 20. Qb5 {[%emt 0:00:20]} Rd5 {[%emt 0:01:43]} 21. Qb3 {[%emt 0:04:29]} a4 {[%emt 0:01:47]} 22. Qc2 {[%emt 0:04:01]} Rxe5 {[%emt 0:00:37]} 23. Nxe5 {[%emt 0:00:19]} Qxe5 {[%emt 0:00:04]} 24. Rfe1 {[%emt 0:01:27]} Qf6 {[%emt 0:00:06]} 25. Re2 {[%emt 0:02:37]} Rc8 {[%emt 0:01:20]} 26. Qd1 {[%emt 0:02:14]} Qf4 {[%emt 0:00:47]} 27. Rcc2 {[%emt 0:04:39]} g6 {[%emt 0:01:45]} 28. Qe1 {[%emt 0:05:48]} Kg7 {[%emt 0:02:03]} 29. Re4 {[%emt 0:06:00]} Qf5 {[%emt 0:02:58]} 30. Qe2 {[%emt 0:04:33]} Rd8 {[%emt 0:01:06]} 31. Qe1 {[%emt 0:01:34]} Qxe4 {[%emt 0:02:02]} 0-1